fUST/lending_fUST_20250912
["ID","MTS","AMOUNT","RATE_DAILY","PERIOD"]
[385104401,1757663477731,-759.31,0.00018082,2]
[385104402,1757663477740,-2423.47,0.00018082,2]
[385104403,1757663477749,-480.0,0.00018082,2]
[385104404,1757663477758,-625.89,0.00018082,2]
[385104405,1757663477768,-480.0,0.00018082,2]
[385104406,1757663477777,-480.0,0.00018082,2]
[385104407,1757663477786,-480.0,0.00018082,2]
[385104408,1757663477795,-868.74,0.00018082,2]
[385104409,1757663477805,-480.0,0.00018082,2]
[385104410,1757663477815,-480.0,0.00018082,2]
[385104411,1757663477825,-615.13,0.00018082,2]
[385104412,1757663477834,-480.0,0.00018082,2]
[385104413,1757663477844,-4414.05,0.00018082,2]
[385104414,1757663477853,-480.0,0.00018195,2]
[385104415,1757663477862,-464.59763501,0.00018356,2]
[385104416,1757663477872,-178.45303487,0.00018356,2]
[385104417,1757663477882,-432.20667201,0.00018356,2]
[385104418,1757663477891,-480.0,0.00018356,2]
[385104419,1757663477901,-613.89984227,0.00018356,2]
[385104420,1757663477911,-565.67,0.00018356,2]
[385104421,1757663477921,-480.0,0.00018356,2]
[385104422,1757663477931,-500.0,0.00018356,2]
[385104423,1757663477942,-500.0,0.00018356,2]
[385104424,1757663477952,-480.0,0.00018356,2]
[385104425,1757663477962,-590.65957792,0.00018356,2]
[385104426,1757663477971,-520.0,0.00018356,2]
[385104427,1757663477980,-480.0,0.00018356,2]
[385104428,1757663477991,-480.0,0.00018356,2]
[385104429,1757663478002,-480.0,0.00018356,2]
[385104430,1757663478012,-480.0,0.00018356,2]
[385104431,1757663478021,-765.54,0.00018356,2]
[385104432,1757663478031,-480.0,0.00018356,2]
[385104433,1757663478040,-480.0,0.00018356,2]
[385104434,1757663478050,-480.0,0.00018356,2]
[385104435,1757663478060,-620.7514045,0.00018356,2]
[385104436,1757663478069,-759.31,0.00018356,2]
[385104437,1757663478078,-2423.47,0.00018356,2]
[385104438,1757663478088,-480.0,0.00018356,2]
[385104439,1757663478097,-625.89,0.00018356,2]
[385104440,1757663478107,-480.0,0.00018356,2]
[385104441,1757663478116,-480.0,0.00018356,2]
[385104442,1757663478126,-480.0,0.00018356,2]
[385104443,1757663478135,-868.74,0.00018356,2]
[385104444,1757663478145,-480.0,0.00018356,2]
[385104445,1757663478154,-172.54,0.00018356,2]
[385104446,1757663478163,-615.13,0.00018356,2]
[385104447,1757663478173,-480.0,0.00018356,2]
[385104448,1757663478182,-4414.05,0.00018356,2]
[385104449,1757663478192,-151.0,0.000184,2]
[385104450,1757663478201,-480.0,0.00018469,2]
[385104451,1757663478211,-384.509801,0.00018493,2]
[385104452,1757663478220,-480.0,0.0001863,2]
[385104453,1757663478229,-565.67,0.0001863,2]
[385104454,1757663478238,-480.0,0.0001863,2]
[385104455,1757663478247,-500.0,0.0001863,2]
[385104456,1757663478257,-500.0,0.0001863,2]
[385104457,1757663478266,-520.0,0.0001863,2]
[385104458,1757663478276,-480.0,0.0001863,2]
[385104459,1757663478285,-452.23403591,0.0001863,2]
[385104460,1757663478295,-480.0,0.0001863,2]
[385104461,1757663478304,-765.54,0.0001863,2]
[385104462,1757663478313,-89.85554601,0.0001863,2]
[385104463,1757663478329,-390.14445399,0.0001863,2]
[385104464,1757663478338,-480.0,0.0001863,2]
[385104465,1757663478348,-480.0,0.0001863,2]
[385104466,1757663478358,-759.31,0.0001863,2]
[385104467,1757663478367,-560.63120059,0.0001863,2]
[385104468,1757663478379,-1862.83879941,0.0001863,2]
[385104469,1757663478388,-480.0,0.0001863,2]
[385104470,1757663478398,-625.89,0.0001863,2]
[385104471,1757663478408,-480.0,0.0001863,2]
[385104472,1757663478417,-500.14589705,0.0001863,2]
[385104473,1757663478427,-480.0,0.0001863,2]
[385104474,1757663478436,-868.74,0.0001863,2]
[385104475,1757663478445,-615.13,0.0001863,2]
[385104476,1757663478455,-480.0,0.0001863,2]
[385104477,1757663478464,-4414.05,0.0001863,2]
[385104478,1757663478473,-378.20530354,0.00018634,2]
[385104479,1757663478771,480.0,0.00013698,2]
[385104480,1757663478870,480.0,0.00013698,2]
[385104481,1757663479084,480.0,0.00013698,2]
[385104482,1757663479166,480.0,0.00013698,2]
[385104483,1757663479281,480.0,0.00013698,2]
[385104484,1757663479354,480.0,0.00013698,2]
[385104485,1757663479459,480.0,0.00013698,2]
[385104486,1757663489160,-1000.0,0.00013598,2]
[385104487,1757663489231,-500.68417353,0.00013673,2]
[385104488,1757663489301,-500.0,0.00013673,2]
[385104489,1757663489376,-444.44085401,0.00013673,2]
[385104490,1757663489456,-247.99452224,0.00013673,2]
[385104491,1757663489533,-500.0,0.00013673,2]
[385104492,1757663489611,-500.0,0.00013673,2]
[385104493,1757663489686,-500.0,0.00013673,2]
[385104494,1757663489760,-480.0,0.00013698,2]
[385104495,1757663489833,-173.77090044,0.00013698,2]
[385104496,1757663496095,-306.22909956,0.00013698,2]
[385104497,1757663496170,-480.0,0.00013698,2]
[385104498,1757663496256,-480.0,0.00013698,2]
[385104499,1757663496331,-480.0,0.00013698,2]
[385104500,1757663496403,-480.0,0.00013698,2]
[385104501,1757663496474,-480.0,0.00013698,2]
[385104502,1757663496545,-480.0,0.00013698,2]
[385104503,1757663496615,-480.0,0.00013698,2]
[385104504,1757663496686,-480.0,0.00013698,2]
[385104505,1757663496757,-480.0,0.00013698,2]
[385104506,1757663496831,-267.55180088,0.00013698,2]
[385104507,1757663497353,-212.44819912,0.00013698,2]
[385104508,1757663497428,-480.0,0.00013698,2]
[385104509,1757663497500,-480.0,0.00013698,2]
[385104510,1757663497570,-480.0,0.00013698,2]
[385104511,1757663497652,-480.0,0.00013698,2]
[385104512,1757663497738,-480.0,0.00013698,2]
[385104513,1757663497983,-480.0,0.00013698,2]
[385104514,1757663498058,-480.0,0.00013698,2]
[385104515,1757663498131,-497.79242964,0.00013698,2]
[385104516,1757663498205,-480.0,0.00013698,2]
[385104517,1757663498276,-419.52874248,0.00013698,2]
[385104518,1757663498541,-60.47125752,0.00013698,2]
[385104519,1757663498607,-480.0,0.00013698,2]
[385104520,1757663498678,-465.12870954,0.00013698,2]
[385104521,1757663498743,-480.0,0.00013698,2]
[385104522,1757663498813,-480.0,0.00013698,2]
[385104523,1757663498882,-480.0,0.00013698,2]
[385104524,1757663498951,-483.84355051,0.00013698,2]
[385104525,1757663499019,-480.0,0.00013698,2]
[385104526,1757663499086,-484.54481576,0.00013698,2]
[385104527,1757663499153,-480.0,0.00013698,2]
[385104528,1757663499220,-480.0,0.00013698,2]
[385104529,1757663499287,-3.58403911,0.00013698,2]
[385104530,1757663499563,-284.86525512,0.00013698,2]
[385104531,1757663499635,-480.0,0.00013698,2]
[385104532,1757663499704,-480.0,0.00013698,2]
[385104533,1757663499772,-480.96651336,0.00013698,2]
[385104534,1757663499843,-480.0,0.00013698,2]
[385104535,1757663499924,480.0,0.00013698,2]
[385104536,1757663508516,480.0,0.00013698,2]
[385104537,1757663514189,480.0,0.00013698,2]
[385104538,1757663514646,502.84866395,0.00013698,2]
[385104539,1757663517245,1000.0,0.00018967,20]
[385104540,1757663519249,480.0,0.00013698,2]
[385104541,1757663522424,480.0,0.00013698,2]
[385104542,1757663523211,480.0,0.00013698,2]
[385104544,1757663525295,7097.16133605,0.00013414,2]
[385104545,1757663525369,10000.01,0.00013414,2]
[385104546,1757663525442,10000.01,0.00013414,2]
[385104547,1757663525515,10000.01,0.00013414,2]
[385104548,1757663525589,10000.01,0.00013414,2]
[385104549,1757663525674,10000.01,0.00013414,2]
[385104550,1757663525753,10000.01,0.00013414,2]
[385104551,1757663525826,10000.01,0.00013414,2]
[385104552,1757663525897,10000.01,0.00013414,2]
[385104553,1757663525966,10000.01,0.00013414,2]
[385104554,1757663526009,-276.73849027,0.00013414,2]
[385104555,1757663528202,-344.64467641,0.00013414,2]
[385104556,1757663531148,-255.9724317,0.00013414,2]
[385104557,1757663533569,-172.68016149,0.00013414,2]
[385104558,1757663537267,-293.90784349,0.00013414,2]
[385104559,1757663538970,-440.13023696,0.00013414,2]
[385104560,1757663541614,-242.45773546,0.00013414,2]
[385104561,1757663543307,-262.18370928,0.00013414,2]
[385104562,1757663546744,-202.95413605,0.00013414,2]
[385104563,1757663546958,2782.9985277,0.00012793,2]
[385104564,1757663550221,-166.5117253,0.00013414,2]
[385104565,1757663551954,-167.33877011,0.00013414,2]
[385104566,1757663555295,-300.0,0.00013414,2]
[385104567,1757663555829,183.07852222,0.00013413,2]
[385104568,1757663556448,500.0,0.00013413,2]
[385104569,1757663556523,152.51240527,0.00013413,2]
[385104570,1757663556601,500.0,0.00013413,2]
[385104571,1757663556675,240.30201628,0.00013413,2]
[385104572,1757663556763,500.0,0.00013413,2]
[385104573,1757663556847,500.0,0.00013413,2]
[385104574,1757663556931,408.78692836,0.00013413,2]
[385104575,1757663557018,500.0,0.00013413,2]
[385104576,1757663557108,500.0,0.00013413,2]
[385104577,1757663557189,500.0,0.00013413,2]
[385104578,1757663558469,-227.00801504,0.00013414,2]
[385104579,1757663561258,-330.94100028,0.00013414,2]
[385104580,1757663564968,-307.96424112,0.00013414,2]
[385104581,1757663569075,-438.43093488,0.00013414,2]
[385104582,1757663573519,-166.31394601,0.00013414,2]
[385104583,1757663578230,-339.74660172,0.00013414,2]
[385104584,1757663581591,-179.82183482,0.00013414,2]
[385104585,1757663583522,-292.01567721,0.00013414,2]
[385104586,1757663585337,-519.90564708,0.00013414,2]
[385104587,1757663589383,-163.27744421,0.00013414,2]
[385104588,1757663592830,-247.0321659,0.00013414,2]
[385104589,1757663595296,-179.93467193,0.00013414,2]
[385104590,1757663597888,-512.76360136,0.00013414,2]
[385104591,1757663602770,-274.36274418,0.00013414,2]
[385104592,1757663606965,-186.99373193,0.00013414,2]
[385104594,1757663610215,-181.34679544,0.00013414,2]
[385104595,1757663614025,-291.35041951,0.00013414,2]
[385104597,1757663617387,-290.13616409,0.00013414,2]
[385104598,1757663618883,666.0,0.00012692,2]
[385104599,1757663622135,-167.3945075,0.00013414,2]
[385104600,1757663625015,-161.23327438,0.00013414,2]
[385104601,1757663626808,-169.05899972,0.00013414,2]
[385104602,1757663629796,-200.0,0.00013414,2]
[385104603,1757663634106,-156.68162977,0.00013414,2]
[385104604,1757663635873,-371.8375455,0.00013414,2]
[385104605,1757663639687,-185.17404277,0.00013414,2]
[385104606,1757663642187,-187.448763,0.00013414,2]
[385104607,1757663646024,-154.75521047,0.00013414,2]
[385104608,1757663648443,-152.0,0.00013414,2]
[385104609,1757663650075,-320.62198376,0.00013414,2]
[385104610,1757663655614,-367.89372861,0.00013414,2]
[385104611,1757663658143,-155.45994058,0.00013414,2]
[385104612,1757663659967,-233.49066903,0.00013414,2]
[385104613,1757663662838,367.9,0.00012329,2]
[385104614,1757663663336,-157.62398512,0.00013414,2]
[385104615,1757663665717,155.45994058,0.0001328,2]
[385104616,1757663667005,-180.00781624,0.00013414,2]
[385104617,1757663671971,-168.0,0.00013414,2]
[385104618,1757663673273,233.49,0.00012329,2]
[385104619,1757663674232,-587.84249265,0.00013414,2]
[385104620,1757663679652,-180.89454327,0.00013414,2]
[385104621,1757663682154,-151.78147644,0.00013414,2]
[385104622,1757663685206,297.0,0.00027397,120]
[385104623,1757663685272,-204.49300831,0.00013414,2]
[385104624,1757663690082,-292.70482761,0.00013414,2]
[385104625,1757663696071,292.70482761,0.0001328,2]
[385104626,1757663697069,-168.5724761,0.00013414,2]
[385104627,1757663701584,-300.0,0.00013414,2]
[385104628,1757663702932,300.0,0.00013413,2]
[385104629,1757663703930,-225.04068905,0.00013414,2]
[385104630,1757663706915,-157.62398512,0.00013414,2]
[385104631,1757663709993,-427.95979593,0.00013414,2]
[385104632,1757663712482,225.04068905,0.0001328,2]
[385104633,1757663713121,-205.05568667,0.00013414,2]
[385104634,1757663715621,-250.0,0.00013414,2]
[385104635,1757663718402,-152.0,0.00013414,2]
[385104636,1757663721189,491.73614293,0.0001328,2]
[385104637,1757663721262,767.47580089,0.0001328,2]
[385104638,1757663721936,-368.78699958,0.00013414,2]
[385104639,1757663728627,9232.53419911,0.00012692,2]
[385104640,1757663728697,767.46580089,0.00012692,2]
[385104641,1757663736868,300.0,0.0001328,2]
[385104642,1757663878925,1955.08292884,0.00013314,2]
[385104644,1757664031916,200.0,0.00027153,120]
[385104645,1757664094971,465.46273892,0.0002849,60]
[385104646,1757664122776,151.0,0.000131,2]
[385104647,1757664123226,151.0,0.000128,2]
[385104648,1757664123592,151.0,0.000124,2]
[385104649,1757664134659,310.0,0.0002849,60]
[385104650,1757664136035,1000.0,0.0001276,2]
[385104651,1757664219278,1564.06634308,0.00013314,2]
[385104671,1757664540019,214.33002073,0.00013012,2]
[385104675,1757664559609,1251.25307444,0.00013314,2]
[385104740,1757664632545,-1264.84367216,0.00013414,2]
[385104903,1757664638461,-256221.60136138,0.00013414,2]
[385104904,1757664638471,-802.7299178,0.00013414,2]
[385104905,1757664638480,-151.0,0.000135,2]
[385104906,1757664638490,-1251.25307443,0.00013509,2]
[385104907,1757664638499,-4171.93868291,0.00013598,2]
[385104908,1757664638509,-9487.0095642,0.0001366,2]
[385104909,1757664638518,-500.0,0.00013673,2]
[385104910,1757664638528,-481.9840955,0.00013673,2]
[385104911,1757664638538,-500.0,0.00013673,2]
[385104912,1757664638550,-500.0,0.00013673,2]
[385104913,1757664638560,-500.0,0.00013673,2]
[385104914,1757664638570,-500.0,0.00013673,2]
[385104915,1757664638580,-500.0,0.00013673,2]
[385104916,1757664638592,-500.0,0.00013673,2]
[385104917,1757664638603,-500.0,0.00013673,2]
[385104918,1757664638613,-500.0,0.00013673,2]
[385104919,1757664638626,-639.1747751,0.00013673,2]
[385104920,1757664638637,-500.0,0.00013673,2]
[385104921,1757664638647,-500.0,0.00013673,2]
[385104922,1757664638656,-500.0,0.00013673,2]
[385104923,1757664638665,-500.0,0.00013673,2]
[385104924,1757664638674,-500.0,0.00013673,2]
[385104925,1757664638684,-500.0,0.00013673,2]
[385104926,1757664638693,-500.0,0.00013673,2]
[385104927,1757664638703,-500.0,0.00013673,2]
[385104928,1757664638712,-500.0,0.00013673,2]
[385104929,1757664638722,-500.0,0.00013673,2]
[385104930,1757664638731,-501.3793714,0.00013673,2]
[385104931,1757664638741,-500.0,0.00013673,2]
[385104932,1757664638751,-500.0,0.00013673,2]
[385104933,1757664638760,-158.91104472,0.00013673,2]
[385104934,1757664638769,-500.0,0.00013673,2]
[385104935,1757664638779,-500.0,0.00013673,2]
[385104936,1757664638788,-500.0,0.00013673,2]
[385104937,1757664638798,-500.0,0.00013673,2]
[385104938,1757664638808,-500.0,0.00013673,2]
[385104939,1757664638818,-500.0,0.00013673,2]
[385104940,1757664638828,-182.20621308,0.00013673,2]
[385104941,1757664638839,-500.43853504,0.00013673,2]
[385104942,1757664638849,-500.34681271,0.00013673,2]
[385104943,1757664638858,-500.0,0.00013673,2]
[385104944,1757664638867,-340.83417394,0.00013673,2]
[385104945,1757664638876,-500.0,0.00013673,2]
[385104946,1757664638885,-502.88567287,0.00013673,2]
[385104947,1757664638894,-500.0,0.00013673,2]
[385104948,1757664638903,-160.08160613,0.00013673,2]
[385104949,1757664638912,-500.0,0.00013673,2]
[385104950,1757664638921,-500.0,0.00013673,2]
[385104951,1757664638931,-161.02447822,0.00013673,2]
[385104952,1757664638942,-228.23987367,0.00013673,2]
[385104953,1757664638953,-519.30030214,0.00013673,2]
[385104954,1757664638962,-260.16714718,0.00013673,2]
[385104955,1757664638971,-322.95752596,0.00013673,2]
[385104956,1757664638981,-500.0,0.00013673,2]
[385104957,1757664638990,-501.21061556,0.00013673,2]
[385104958,1757664638999,-500.0,0.00013673,2]
[385104959,1757664639007,-502.51089403,0.00013673,2]
[385104960,1757664639017,-500.40294221,0.00013673,2]
[385104961,1757664639028,-500.0,0.00013673,2]
[385104962,1757664639038,-501.43906007,0.00013673,2]
[385104963,1757664639047,-523.57965948,0.00013673,2]
[385104964,1757664639056,-500.0,0.00013673,2]
[385104965,1757664639065,-24234.18529517,0.00013673,2]
[385104966,1757664639074,-483.64241548,0.00013698,2]
[385104967,1757664639083,-480.0,0.00013698,2]
[385104968,1757664639093,-480.0,0.00013698,2]
[385104969,1757664639102,-480.0,0.00013698,2]
[385104970,1757664639111,-481.91308891,0.00013698,2]
[385104971,1757664639120,-482.69981886,0.00013698,2]
[385104972,1757664639129,-482.27346856,0.00013698,2]
[385104973,1757664639140,-480.0,0.00013698,2]
[385104974,1757664639149,-480.0,0.00013698,2]
[385104975,1757664639158,-480.0,0.00013698,2]
[385104976,1757664639167,-1004.19207732,0.00013698,2]
[385104977,1757664639176,-500.0,0.00013698,2]
[385104978,1757664639186,-467.91463731,0.00013698,2]
[385104979,1757664639195,-480.0,0.00013698,2]
[385104980,1757664639204,-480.0,0.00013698,2]
[385104981,1757664639214,-484.89908354,0.00013698,2]
[385104982,1757664639223,-480.0,0.00013698,2]
[385104983,1757664639233,-480.0,0.00013698,2]
[385104984,1757664639242,-482.06602762,0.00013698,2]
[385104985,1757664639251,-480.0,0.00013698,2]
[385104986,1757664639261,-480.0,0.00013698,2]
[385104987,1757664639270,-480.74820718,0.00013698,2]
[385104988,1757664639280,-480.0,0.00013698,2]
[385104989,1757664639290,-480.0,0.00013698,2]
[385104990,1757664639299,-500.0,0.00013698,2]
[385104991,1757664639308,-573.89830524,0.00013698,2]
[385104992,1757664639317,-480.0,0.00013698,2]
[385104993,1757664639326,-480.0,0.00013698,2]
[385104994,1757664639335,-480.0,0.00013698,2]
[385104995,1757664639344,-480.0,0.00013698,2]
[385104996,1757664639353,-480.0,0.00013698,2]
[385104997,1757664639363,-480.0,0.00013698,2]
[385104998,1757664639372,-487.21547881,0.00013698,2]
[385104999,1757664639381,-482.34901554,0.00013698,2]
[385105000,1757664639391,-480.0,0.00013698,2]
[385105001,1757664639400,-481.975807,0.00013698,2]
[385105002,1757664639409,-480.0,0.00013698,2]
[385105003,1757664639418,-480.0,0.00013698,2]
[385105004,1757664639427,-480.0,0.00013698,2]
[385105005,1757664639440,-480.0,0.00013698,2]
[385105006,1757664639449,-480.0,0.00013698,2]
[385105007,1757664639458,-482.58015421,0.00013698,2]
[385105008,1757664639467,-480.0,0.00013698,2]
[385105009,1757664639476,-480.0,0.00013698,2]
[385105010,1757664639485,-480.0,0.00013698,2]
[385105011,1757664639495,-480.0,0.00013698,2]
[385105012,1757664639504,-480.0,0.00013698,2]
[385105013,1757664639513,-480.0,0.00013698,2]
[385105014,1757664639523,-481.75707894,0.00013698,2]
[385105015,1757664639532,-186.53485231,0.00013698,2]
[385105016,1757664639542,-480.0,0.00013698,2]
[385105017,1757664639551,-480.0,0.00013698,2]
[385105018,1757664639560,-480.0,0.00013698,2]
[385105019,1757664639571,-480.0,0.00013698,2]
[385105020,1757664639580,-480.0,0.00013698,2]
[385105021,1757664639589,-480.0,0.00013698,2]
[385105022,1757664639598,-480.0,0.00013698,2]
[385105023,1757664639608,-480.0,0.00013698,2]
[385105024,1757664639617,-480.0,0.00013698,2]
[385105025,1757664639626,-480.0,0.00013698,2]
[385105026,1757664639635,-480.0,0.00013698,2]
[385105027,1757664639644,-480.0,0.00013698,2]
[385105028,1757664639654,-480.0,0.00013698,2]
[385105029,1757664639663,-480.0,0.00013698,2]
[385105030,1757664639672,-480.0,0.00013698,2]
[385105031,1757664639683,-480.0,0.00013698,2]
[385105032,1757664639692,-480.0,0.00013698,2]
[385105033,1757664639701,-480.0,0.00013698,2]
[385105034,1757664639710,-480.0,0.00013698,2]
[385105035,1757664639720,-480.0,0.00013698,2]
[385105036,1757664639729,-480.0,0.00013698,2]
[385105037,1757664639739,-480.0,0.00013698,2]
[385105038,1757664639747,-480.0,0.00013698,2]
[385105039,1757664639757,-481.03224117,0.00013698,2]
[385105041,1757664639766,-480.0,0.00013698,2]
[385105043,1757664639775,-480.0,0.00013698,2]
[385105045,1757664639785,-480.0,0.00013698,2]
[385105046,1757664639794,-480.0,0.00013698,2]
[385105047,1757664639803,-480.0,0.00013698,2]
[385105048,1757664639812,-480.0,0.00013698,2]
[385105049,1757664639821,-480.78442509,0.00013698,2]
[385105050,1757664639830,-480.0,0.00013698,2]
[385105051,1757664639839,-480.0,0.00013698,2]
[385105052,1757664639848,-480.0,0.00013698,2]
[385105053,1757664639857,-480.0,0.00013698,2]
[385105055,1757664639868,-323.51168321,0.00013698,2]
[385105056,1757664639877,-483.08218663,0.00013698,2]
[385105057,1757664639886,-480.0,0.00013698,2]
[385105058,1757664639896,-480.0,0.00013698,2]
[385105059,1757664639905,-480.0,0.00013698,2]
[385105060,1757664639915,-480.0,0.00013698,2]
[385105061,1757664639924,-480.0,0.00013698,2]
[385105062,1757664639936,-481.37807496,0.00013698,2]
[385105063,1757664639949,-480.0,0.00013698,2]
[385105064,1757664639959,-480.0,0.00013698,2]
[385105065,1757664639968,-480.0,0.00013698,2]
[385105066,1757664639977,-480.0,0.00013698,2]
[385105067,1757664639987,-430.74764772,0.00013698,2]
[385105068,1757664639996,-480.0,0.00013698,2]
[385105069,1757664640006,-480.0,0.00013698,2]
[385105070,1757664640017,-480.0,0.00013698,2]
[385105071,1757664640027,-480.0,0.00013698,2]
[385105072,1757664640036,-480.0,0.00013698,2]
[385105073,1757664640046,-480.0,0.00013698,2]
[385105074,1757664640055,-480.0,0.00013698,2]
[385105075,1757664640064,-480.0,0.00013698,2]
[385105076,1757664640074,-483.96226077,0.00013698,2]
[385105077,1757664640083,-410.04540405,0.00013698,2]
[385105078,1757664640092,-480.0,0.00013698,2]
[385105079,1757664640102,-480.0,0.00013698,2]
[385105081,1757664640112,-480.0,0.00013698,2]
[385105083,1757664640121,-488.80296565,0.00013698,2]
[385105085,1757664640133,-491.61909584,0.00013698,2]
[385105087,1757664640142,-480.0,0.00013698,2]
[385105089,1757664640152,-480.0,0.00013698,2]
[385105091,1757664640161,-480.0,0.00013698,2]
[385105093,1757664640171,-480.0,0.00013698,2]
[385105095,1757664640182,-480.0,0.00013698,2]
[385105097,1757664640192,-480.0,0.00013698,2]
[385105099,1757664640202,-482.56581299,0.00013698,2]
[385105101,1757664640211,-488.17869395,0.00013698,2]
[385105103,1757664640220,-485.00265771,0.00013698,2]
[385105105,1757664640230,-487.12324655,0.00013698,2]
[385105107,1757664640239,-481.90804806,0.00013698,2]
[385105109,1757664640248,-480.0,0.00013698,2]
[385105111,1757664640258,-480.0,0.00013698,2]
[385105113,1757664640267,-480.0,0.00013698,2]
[385105115,1757664640276,-480.0,0.00013698,2]
[385105129,1757664640412,-480.0,0.00013698,2]
[385105131,1757664640422,-483.18616691,0.00013698,2]
[385105133,1757664640431,-486.07006086,0.00013698,2]
[385105135,1757664640441,-480.0,0.00013698,2]
[385105137,1757664640451,-480.0,0.00013698,2]
[385105139,1757664640461,-1014.67508106,0.00013698,2]
[385105141,1757664640472,-480.0,0.00013698,2]
[385105143,1757664640481,-483.47898412,0.00013698,2]
[385105145,1757664640490,-480.0,0.00013698,2]
[385105147,1757664640500,-480.0,0.00013698,2]
[385105149,1757664640509,-480.0,0.00013698,2]
[385105151,1757664640518,-480.0,0.00013698,2]
[385105153,1757664640528,-480.0,0.00013698,2]
[385105156,1757664640539,-396.3320788,0.00013698,2]
[385105158,1757664640548,-482.8578257,0.00013698,2]
[385105159,1757664640558,-484.03560337,0.00013698,2]
[385105161,1757664640567,-480.0,0.00013698,2]
[385105164,1757664640576,-480.0,0.00013698,2]
[385105165,1757664640585,-480.0,0.00013698,2]
[385105168,1757664640595,-480.0,0.00013698,2]
[385105170,1757664640604,-483.11372983,0.00013698,2]
[385105171,1757664640616,-480.0,0.00013698,2]
[385105173,1757664640625,-480.0,0.00013698,2]
[385105175,1757664640634,-480.0,0.00013698,2]
[385105177,1757664640644,-490.86520638,0.00013698,2]
[385105179,1757664640653,-480.0,0.00013698,2]
[385105181,1757664640662,-480.0,0.00013698,2]
[385105183,1757664640671,-480.0,0.00013698,2]
[385105185,1757664640680,-482.39378484,0.00013698,2]
[385105187,1757664640689,-486.48237104,0.00013698,2]
[385105189,1757664640699,-480.0,0.00013698,2]
[385105191,1757664640708,-232.51069455,0.00013698,2]
[385105193,1757664640717,-480.0,0.00013698,2]
[385105195,1757664640726,-480.0,0.00013698,2]
[385105197,1757664640738,-479.37184423,0.00013698,2]
[385105199,1757664640748,-402.7142657,0.00013698,2]
[385105201,1757664640759,-480.0,0.00013698,2]
[385105203,1757664640769,-480.0,0.00013698,2]
[385105205,1757664640779,-480.0,0.00013698,2]
[385105207,1757664640789,-481.33761272,0.00013698,2]
[385105209,1757664640799,-480.0,0.00013698,2]
[385105211,1757664640808,-480.0,0.00013698,2]
[385105213,1757664640817,-480.0,0.00013698,2]
[385105215,1757664640827,-571.04829529,0.00013698,2]
[385105217,1757664640836,-480.0,0.00013698,2]
[385105219,1757664640846,-484.62279304,0.00013698,2]
[385105221,1757664640856,-480.0,0.00013698,2]
[385105223,1757664640866,-480.0,0.00013698,2]
[385105225,1757664640875,-480.0,0.00013698,2]
[385105227,1757664640885,-480.0,0.00013698,2]
[385105229,1757664640895,-480.0,0.00013698,2]
[385105231,1757664640904,-480.0,0.00013698,2]
[385105233,1757664640915,-480.0,0.00013698,2]
[385105235,1757664640924,-489.81986851,0.00013698,2]
[385105237,1757664640934,-201.83880755,0.00013698,2]
[385105239,1757664640948,-480.0,0.00013698,2]
[385105241,1757664640962,-480.0,0.00013698,2]
[385105243,1757664640971,-480.0,0.00013698,2]
[385105245,1757664640982,-480.0,0.00013698,2]